fUSD/lending_fUSD_20240422
["ID","MTS","AMOUNT","RATE_DAILY","PERIOD"]
[323181004,1713781405761,23.04930782,0.00010839,2]
[323181005,1713781407460,126.95069218,0.00010839,2]
[323181006,1713781407481,52.69444697,0.00010839,2]
[323181007,1713781420050,150.0,0.00010839,2]
[323181008,1713781420073,115.04621164,0.00010839,2]
[323181009,1713781422308,-643.67658804,0.00011425,2]
[323181010,1713781422329,-565.34977281,0.00011425,2]
[323181011,1713781422352,-537.94873719,0.00011425,2]
[323181012,1713781422373,-1253.02490196,0.00011425,2]
[323181013,1713781423525,-926.45171799,0.00011425,2]
[323181014,1713781423545,-963.22,0.00011428,2]
[323181015,1713781423872,-615.9,0.00011555,2]
[323181016,1713781425419,179.45408813,0.00010839,2]
[323181017,1713781425657,173.04930782,0.00010839,2]
[323181019,1713781448277,150.0,0.00010839,2]
[323181020,1713781448299,102.80350376,0.00010839,2]
[323181021,1713781457485,150.0,0.00011382,2]
[323181022,1713781497263,-150.0,0.00011556,2]
[323181023,1713781497326,-150.0,0.00011556,2]
[323181024,1713781497392,-150.0,0.00011556,2]
[323181025,1713781497452,-150.0,0.00011556,2]
[323181026,1713781497505,-150.0,0.00011556,2]
[323181027,1713781497538,-162.16980416,0.00011556,2]
[323181029,1713781511273,141.92488606,0.00011555,2]
[323181030,1713781511293,3000.0,0.00011555,2]
[323181031,1713781511316,2403.92410395,0.00011555,2]
[323181032,1713781512264,155.0,0.00011555,2]
[323181033,1713781517233,207.74230146,0.00011555,2]
[323181034,1713781523819,233.33359459,0.00011555,2]
[323181035,1713781523840,3000.0,0.00011555,2]
[323181036,1713781523861,3000.0,0.00011555,2]
[323181037,1713781523883,1107.31481824,0.00011555,2]
[323181038,1713781531828,1127.02,0.00011383,2]
[323181039,1713781545568,359.32667582,0.00011555,2]
[323181040,1713781545610,406.33850594,9.469e-05,2]
[323181041,1713781545632,1234.83149406,9.469e-05,2]
[323181042,1713781554407,250.0,0.00011389,2]
[323181043,1713781597341,446.34,0.00011398,2]
[323181044,1713781663569,313.74231263,0.00011555,2]
[323181045,1713781698141,170.8,9.313e-05,2]
[323181046,1713781699245,584.28619331,0.00011555,2]
[323181047,1713781699265,3000.0,0.00011555,2]
[323181048,1713781699288,514.7547887,0.00011555,2]
[323181049,1713781728097,162.98514866,0.00011458,2]
[323181050,1713781762763,207.74230146,0.00011555,2]
[323181066,1713781831870,-359.32667582,0.00011556,2]
[323181067,1713781831879,-290.67332418,0.00011557,2]
[323181097,1713781837699,-638.15,0.00011557,2]
[323181118,1713781837913,-3796.6859247,0.00011557,2]
[323181119,1713781837924,-2359.79119523,0.00011558,2]
[323181120,1713781837934,-150.0,0.00011559,2]
[323181121,1713781837943,-750.0,0.00011559,2]
[323181122,1713781837954,-2820.99556388,0.0001156,2]
[323181131,1713781840135,-15487.48067634,0.0001156,2]
[323181132,1713781840146,-2579.38792669,0.0001156,2]
[323181133,1713781840156,-162.73,0.00011589,2]
[323181134,1713781840165,-1344.71,0.00011597,2]
[323181135,1713781840174,-1157.87,0.00011607,2]
[323181136,1713781840184,-200.0,0.0001161,2]
[323181137,1713781840193,-501.74,0.0001162,2]
[323181138,1713781840203,-553.66,0.00011628,2]
[323181139,1713781840212,-656.88,0.00011642,2]
[323181140,1713781840225,-170.8,0.00011642,2]
[323181141,1713781840234,-421.13010501,0.00011704,2]
[323181143,1713781840471,-136.64989499,0.00011704,2]
[323181144,1713781840482,-1641.17,0.00011733,2]
[323181145,1713781840493,-557.78,0.00011736,2]
[323181146,1713781840504,-557.78,0.00011768,2]
[323181147,1713781840515,-557.78,0.000118,2]
[323181148,1713781840525,-557.78,0.00011832,2]
[323181149,1713781840536,-557.78,0.00011864,2]
[323181150,1713781840548,-155.0,0.00011868,2]
[323181151,1713781840558,-557.78,0.00011896,2]
[323181152,1713781840568,-557.78,0.00011929,2]
[323181153,1713781840578,-557.78,0.00011961,2]
[323181154,1713781840588,-557.78,0.00011993,2]
[323181155,1713781840598,-557.78,0.00012025,2]
[323181156,1713781840608,-557.78,0.00012057,2]
[323181157,1713781840618,-538.32384601,0.00012058,2]
[323181158,1713781840628,-163.76,0.00012073,2]
[323181159,1713781840638,-557.78,0.00012089,2]
[323181160,1713781840647,-419.06,0.000121,2]
[323181161,1713781840658,-521.95,0.000121,2]
[323181162,1713781840669,-150.0,0.000121,2]
[323181163,1713781840679,-150.0,0.000121,2]
[323181164,1713781840689,-350.11,0.000121,2]
[323181165,1713781840699,-419.06,0.000121,2]
[323181166,1713781840709,-150.0,0.000121,2]
[323181167,1713781840721,-521.95,0.000121,2]
[323181168,1713781840731,-150.0,0.000121,2]
[323181169,1713781840740,-419.06,0.000121,2]
[323181170,1713781840750,-521.95,0.000121,2]
[323181171,1713781840761,-150.0,0.000121,2]
[323181172,1713781840774,-150.0,0.000121,2]
[323181173,1713781840783,-557.78,0.00012121,2]
[323181174,1713781840792,-557.78,0.00012153,2]
[323181175,1713781840801,-419.06,0.00012178,2]
[323181176,1713781840811,-521.95,0.00012178,2]
[323181177,1713781840820,-150.0,0.00012178,2]
[323181178,1713781840829,-350.38,0.00012178,2]
[323181179,1713781840840,-150.0,0.00012178,2]
[323181180,1713781840849,-557.78,0.00012185,2]
[323181181,1713781840858,-557.78,0.00012217,2]
[323181182,1713781840868,-690.04,0.00012241,2]
[323181183,1713781840877,-557.78,0.0001225,2]
[323181184,1713781840887,-169.63,0.00012265,2]
[323181185,1713781840896,-557.78,0.00012282,2]
[323181186,1713781840906,-557.78,0.00012314,2]
[323181187,1713781840915,-909.65,0.00012341,2]
[323181188,1713781840925,-542.10000797,0.00012377,2]
[323181189,1713781840935,-521.39,0.00012378,2]
[323181190,1713781840945,-150.0,0.00012378,2]
[323181191,1713781840956,-150.0,0.00012378,2]
[323181192,1713781840966,-521.95,0.00012478,2]
[323181193,1713781840976,-150.0,0.00012478,2]
[323181194,1713781840985,-161.3,0.00012478,2]
[323181195,1713781840995,-150.0,0.00012478,2]
[323181196,1713781841005,-150.0,0.00012478,2]
[323181197,1713781841015,-684.33,0.000125,2]
[323181198,1713781841024,-521.95,0.000125,2]
[323181199,1713781841035,-150.0,0.000125,2]
[323181200,1713781841047,-413.42,0.00012541,2]
[323181201,1713781841056,-195.57,0.00012578,2]
[323181202,1713781841067,-300.0,0.00012578,2]
[323181203,1713781841077,-761.99,0.00012578,2]
[323181204,1713781841088,-521.95,0.00012578,2]
[323181205,1713781841098,-150.0,0.00012578,2]
[323181206,1713781841108,-150.0,0.00012578,2]
[323181207,1713781841119,-327.64,0.00012578,2]
[323181208,1713781841129,-150.0,0.00012578,2]
[323181209,1713781841138,-510.27,0.00012578,2]
[323181210,1713781841148,-150.0,0.00012578,2]
[323181211,1713781841157,-150.0,0.00012578,2]
[323181212,1713781841168,-521.95,0.00012578,2]
[323181213,1713781841177,-418.94,0.00012578,2]
[323181214,1713781841187,-150.0,0.00012578,2]
[323181215,1713781841197,-162.76,0.00012578,2]
[323181216,1713781841208,-350.38,0.00012578,2]
[323181217,1713781841219,-150.0,0.00012578,2]
[323181218,1713781841229,-521.95,0.00012578,2]
[323181219,1713781841239,-150.0,0.00012578,2]
[323181220,1713781841251,-150.0,0.00012578,2]
[323181221,1713781841263,-162.76,0.00012578,2]
[323181222,1713781841274,-521.95,0.000126,2]
[323181223,1713781841286,-870.32150373,0.000126,2]
[323181237,1713781842892,-80.89849627,0.000126,2]
[323181238,1713781842902,-150.0,0.000126,2]
[323181239,1713781842911,-350.38,0.000126,2]
[323181240,1713781842921,-150.0,0.000126,2]
[323181241,1713781842931,-150.68,0.000126,2]
[323181242,1713781842940,-413.42,0.000126,2]
[323181243,1713781842949,-419.06,0.00012678,2]
[323181244,1713781842959,-150.0,0.00012678,2]
[323181245,1713781842970,-521.95,0.00012678,2]
[323181246,1713781842980,-350.38,0.00012678,2]
[323181247,1713781842989,-325.4,0.00012678,2]
[323181248,1713781842999,-150.0,0.00012678,2]
[323181249,1713781843008,-210.0,0.00012715,2]
[323181250,1713781843018,-446.34,0.00012823,2]
[323181251,1713781843028,-1000.0,0.00012987,2]
[323181252,1713781843037,-500.0,0.00012987,2]
[323181253,1713781843047,-17416.3496,0.00012987,2]
[323181254,1713781843056,-501.960938,0.00013,2]
[323181255,1713781843066,-750.0,0.00013,2]
[323181256,1713781843075,-1000.0,0.00013,2]
[323181257,1713781843085,-1000.0,0.00013,2]
[323181258,1713781843094,-381.72173,0.0001306,2]
[323181259,1713781843103,-553.66,0.00013081,2]
[323181260,1713781843112,-500.0,0.00013084,2]
[323181261,1713781843122,-10000.0,0.00013089,2]
[323181262,1713781843131,-1583.445,0.00013089,2]
[323181263,1713781843140,-1058.7341,0.00013089,2]
[323181264,1713781843149,-660.7235,0.00013089,2]
[323181265,1713781843158,-2468.6713,0.00013089,2]
[323181266,1713781843167,-11690.20303462,0.00013089,2]
[323181267,1713781843176,-1000.0,0.000131,2]
[323181268,1713781843185,-1375.0,0.000131,2]
[323181269,1713781843194,-1820.06,0.00013178,2]
[323181270,1713781843203,-150.0,0.00013178,2]
[323181271,1713781843212,-162.7,0.00013178,2]
[323181272,1713781843222,-300.0,0.00013178,2]
[323181273,1713781843231,-687.3,0.00013178,2]
[323181274,1713781843240,-413.42,0.00013178,2]
[323181275,1713781843250,-413.42,0.00013178,2]
[323181276,1713781843259,-293.01,0.00013178,2]
[323181277,1713781843268,-488.25981975,0.00013187,2]
[323181278,1713781843278,-911.38968817,0.00013187,2]
[323181279,1713781843287,-155.0,0.00013187,2]
[323181280,1713781843296,-3848.09737272,0.00013187,2]
[323181281,1713781843306,-179.60671853,0.00013187,2]
[323181282,1713781843315,-542.88444914,0.00013187,2]
[323181283,1713781843325,-155.12863295,0.00013187,2]
[323181284,1713781843334,-255.3668917,0.00013187,2]
[323181285,1713781843343,-1148.2720982,0.00013187,2]
[323181286,1713781843352,-2175.27845245,0.00013187,2]
[323181287,1713781843361,-155.52981524,0.00013187,2]
[323181288,1713781843370,-7338.36192396,0.00013187,2]
[323181289,1713781843379,-202.26348816,0.00013187,2]
[323181290,1713781843388,-164.47454881,0.00013187,2]
[323181291,1713781843398,-376.71560002,0.00013187,2]
[323181292,1713781843407,-5535.31352545,0.00013187,2]
[323181293,1713781843416,-424.05860207,0.00013188,2]
[323181294,1713781843425,-1864.81793699,0.00013188,2]
[323181295,1713781843434,-1000.0,0.0001321,2]
[323181296,1713781843443,-1000.0,0.00013336,2]
[323181297,1713781843452,-500.0,0.00013336,2]
[323181298,1713781843461,-1000.0,0.000134,2]
[323181299,1713781843472,-500.0,0.00013425,2]
[323181300,1713781843481,-1000.0,0.00013462,2]
[323181301,1713781843490,-150.0,0.00013496,2]
[323181302,1713781843500,-5000.0,0.000135,2]
[323181303,1713781843509,-251.44790458,0.00013559,2]
[323181304,1713781843519,-381.72173,0.0001358,2]
[323181305,1713781843528,-1000.0,0.00013587,2]
[323181306,1713781843537,-500.0,0.00013587,2]
[323181307,1713781843546,-273.8315,0.0001363,2]
[323181308,1713781843555,-150.0,0.00013632,2]
[323181309,1713781843565,-247.28,0.00013647,2]
[323181310,1713781843574,-588.2900361,0.00013684,2]
[323181311,1713781843584,-1694.7354909,0.00013687,2]
[323181312,1713781843594,-5332.8986067,0.00013687,2]
[323181313,1713781843603,-685.3839695,0.00013687,2]
[323181314,1713781843614,-39848.2971766,0.00013687,2]
[323181315,1713781843624,-292.8495501,0.00013687,2]
[323181316,1713781843634,-155.35082197,0.00013696,2]
[323181317,1713781843644,-265.12092461,0.00013696,2]
[323181318,1713781843653,-199.97342672,0.00013696,2]
[323181319,1713781843663,-210.24561399,0.00013696,2]
[323181320,1713781843672,-226.12853944,0.00013696,2]
[323181321,1713781843681,-208.22825663,0.00013696,2]
[323181322,1713781843691,-155.0,0.00013696,2]
[323181323,1713781843700,-215.75624408,0.00013696,2]
[323181324,1713781843709,-1298.24681142,0.00013696,2]
[323181325,1713781843722,-155.67375404,0.00013696,2]
[323181326,1713781843731,-156.34978478,0.00013696,2]
[323181327,1713781843741,-155.0,0.00013696,2]
[323181328,1713781843750,-455.80655655,0.00013696,2]
[323181329,1713781843760,-155.0,0.00013696,2]
[323181330,1713781843772,-1992.21788626,0.00013696,2]
[323181331,1713781843781,-155.57095458,0.00013696,2]
[323181332,1713781843791,-211.64877603,0.00013696,2]
[323181333,1713781843800,-181.15105612,0.00013696,2]
[323181334,1713781843811,-313.54403487,0.00013697,2]
[323181335,1713781843820,-500.0,0.00013698,2]
[323181336,1713781843830,-500.0,0.00013698,2]
[323181337,1713781843839,-500.0,0.00013698,2]
[323181338,1713781843851,-500.0,0.00013698,2]
[323181339,1713781844137,-500.0,0.00013698,2]
[323181340,1713781844150,-500.0,0.00013698,2]
[323181341,1713781844159,-500.0,0.00013698,2]
[323181342,1713781844168,-500.0,0.00013698,2]
[323181343,1713781844178,-500.0,0.00013698,2]
[323181344,1713781844187,-500.0,0.00013698,2]
[323181345,1713781844196,-500.0,0.00013698,2]
[323181346,1713781844205,-500.0,0.00013698,2]
[323181347,1713781844214,-500.0,0.00013698,2]
[323181348,1713781844226,-500.0,0.00013698,2]
[323181349,1713781844235,-500.0,0.00013698,2]
[323181350,1713781844244,-500.0,0.00013698,2]
[323181351,1713781844253,-500.0,0.00013698,2]
[323181352,1713781844262,-500.0,0.00013698,2]
[323181353,1713781844271,-498.48115019,0.00013698,2]
[323181354,1713781844281,-500.0,0.00013698,2]
[323181355,1713781844290,-726.97,0.00013698,2]
[323181356,1713781844299,-500.0,0.00013698,2]
[323181357,1713781844309,-500.0,0.00013698,2]
[323181358,1713781844318,-500.0,0.00013698,2]
[323181359,1713781844327,-500.0,0.00013698,2]
[323181360,1713781844336,-500.0,0.00013698,2]
[323181361,1713781844345,-500.0,0.00013698,2]
[323181362,1713781844354,-500.0,0.00013698,2]
[323181363,1713781844364,-500.0,0.00013698,2]
[323181364,1713781844373,-500.0,0.00013698,2]
[323181365,1713781844382,-1395.71,0.00013698,2]
[323181366,1713781844391,-625.94,0.00013698,2]
[323181367,1713781844400,-500.0,0.00013698,2]
[323181368,1713781844410,-944.17,0.00013698,2]
[323181369,1713781844419,-500.0,0.00013698,2]
[323181370,1713781844429,-500.0,0.00013698,2]
[323181371,1713781844438,-500.0,0.00013698,2]
[323181372,1713781844447,-500.0,0.00013698,2]
[323181373,1713781844457,-500.0,0.00013698,2]
[323181374,1713781844466,-500.0,0.00013698,2]
[323181375,1713781844478,-500.0,0.00013698,2]
[323181376,1713781844487,-570.09,0.00013698,2]
[323181377,1713781844496,-500.0,0.00013698,2]
[323181378,1713781844506,-500.0,0.00013698,2]
[323181379,1713781844515,-634.5,0.00013698,2]
[323181380,1713781844524,-696.5,0.00013698,2]
[323181381,1713781844533,-500.0,0.00013698,2]
[323181382,1713781844542,-500.0,0.00013698,2]
[323181383,1713781844551,-500.0,0.00013698,2]
[323181384,1713781844561,-510.89,0.00013698,2]
[323181385,1713781844570,-562.69,0.00013698,2]
[323181386,1713781844579,-500.0,0.00013698,2]
[323181387,1713781844589,-500.0,0.00013698,2]
[323181388,1713781844598,-500.0,0.00013698,2]
[323181389,1713781844607,-1524.76,0.00013698,2]
[323181390,1713781844616,-500.0,0.00013698,2]
[323181391,1713781844626,-876.76,0.00013698,2]
[323181392,1713781844635,-213.85855439,0.00013698,2]
[323181393,1713781844645,-500.0,0.00013698,2]
[323181394,1713781844654,-632.26,0.00013698,2]
[323181395,1713781844663,-500.0,0.00013698,2]
[323181396,1713781844673,-500.0,0.00013698,2]
[323181397,1713781844683,-500.0,0.00013698,2]
[323181398,1713781844693,-500.0,0.00013698,2]
[323181399,1713781844702,-821.97,0.00013698,2]
[323181400,1713781844711,-500.0,0.00013698,2]
[323181401,1713781844722,-500.0,0.00013698,2]
[323181402,1713781844731,-500.0,0.00013698,2]
[323181403,1713781844741,-760.96,0.00013698,2]
[323181404,1713781844753,-342.96774986,0.00013698,2]
[323181405,1713781844764,-500.0,0.00013698,2]
[323181406,1713781844774,-583.88,0.00013698,2]
[323181407,1713781844783,-500.0,0.00013698,2]
[323181408,1713781844793,-958.57,0.00013698,2]
[323181409,1713781844803,-585.59,0.00013698,2]
[323181410,1713781844813,-500.0,0.00013698,2]
[323181411,1713781844823,-500.0,0.00013698,2]
[323181412,1713781844833,-500.0,0.00013698,2]
[323181413,1713781844844,-500.0,0.00013698,2]
[323181414,1713781844855,-512.02,0.00013698,2]
[323181415,1713781844866,-500.0,0.00013698,2]
[323181416,1713781844875,-1305.47,0.00013698,2]
[323181417,1713781844885,-500.0,0.00013698,2]
[323181418,1713781844894,-500.0,0.00013698,2]
[323181419,1713781844904,-500.0,0.00013698,2]
[323181420,1713781844913,-500.0,0.00013698,2]
[323181421,1713781844924,-986.17,0.00013698,2]
[323181422,1713781844933,-500.0,0.00013698,2]
[323181423,1713781844943,-500.0,0.00013698,2]
[323181424,1713781844954,-599.22,0.00013698,2]
[323181425,1713781844964,-500.0,0.00013698,2]
[323181426,1713781844974,-520.59,0.00013698,2]
[323181427,1713781844982,-679.02,0.00013698,2]
[323181428,1713781844991,-528.62,0.00013698,2]
[323181429,1713781845001,-621.03,0.00013698,2]
[323181430,1713781845010,-500.0,0.00013698,2]
[323181431,1713781845020,-500.0,0.00013698,2]
[323181432,1713781845029,-521.11,0.00013698,2]
[323181433,1713781845039,-500.0,0.00013698,2]
[323181434,1713781845049,-500.0,0.00013698,2]
[323181435,1713781845059,-371.20065477,0.00013698,2]
[323181436,1713781845069,-670.14,0.00013698,2]
[323181437,1713781845080,-500.0,0.00013698,2]
[323181438,1713781845089,-539.09031763,0.00013698,2]
[323181439,1713781845099,-500.0,0.00013698,2]
[323181440,1713781845109,-500.0,0.00013698,2]
[323181441,1713781845119,-1185.51,0.00013698,2]
[323181442,1713781845130,-500.0,0.00013698,2]
[323181443,1713781845139,-500.0,0.00013698,2]
[323181444,1713781845149,-514.44,0.00013698,2]
[323181445,1713781845159,-521.43,0.00013698,2]
[323181446,1713781845169,-625.62,0.00013698,2]
[323181447,1713781845179,-500.0,0.00013698,2]
[323181448,1713781845188,-500.0,0.00013698,2]
[323181449,1713781845198,-500.0,0.00013698,2]
[323181450,1713781845207,-500.0,0.00013698,2]
[323181451,1713781845217,-631.55,0.00013698,2]
[323181452,1713781845228,-572.11,0.00013698,2]
[323181453,1713781845237,-815.63,0.00013698,2]
[323181454,1713781845247,-944.6,0.00013698,2]
[323181455,1713781845256,-500.0,0.00013698,2]
[323181456,1713781845265,-500.0,0.00013698,2]
[323181457,1713781845274,-500.0,0.00013698,2]
[323181458,1713781845283,-500.0,0.00013698,2]
[323181459,1713781845291,-500.0,0.00013698,2]
[323181460,1713781845300,-567.23746184,0.00013698,2]
[323181461,1713781845317,-539.66,0.00013698,2]
[323181462,1713781845333,-1117.46,0.00013698,2]
[323181463,1713781845343,-596.56,0.00013698,2]
[323181464,1713781845354,-500.0,0.00013698,2]
[323181465,1713781845363,-500.0,0.00013698,2]
[323181466,1713781845372,-500.0,0.00013698,2]
[323181467,1713781845382,-603.72,0.00013698,2]
[323181468,1713781845391,-1026.86,0.00013698,2]
[323181469,1713781845400,-500.0,0.00013698,2]
[323181470,1713781845410,-500.0,0.00013698,2]
[323181471,1713781845419,-511.63,0.00013698,2]
[323181472,1713781845429,-500.0,0.00013698,2]
[323181473,1713781845439,-1331.95,0.00013698,2]
[323181474,1713781845448,-500.0,0.00013698,2]
[323181475,1713781845458,-500.0,0.00013698,2]
[323181476,1713781845467,-500.0,0.00013698,2]
[323181477,1713781845480,-525.73,0.00013698,2]
[323181479,1713781845489,-500.0,0.00013698,2]
[323181480,1713781845499,-500.0,0.00013698,2]
[323181481,1713781845508,-500.0,0.00013698,2]
[323181482,1713781845518,-539.11,0.00013698,2]
[323181483,1713781845528,-500.0,0.00013698,2]
[323181485,1713781845538,-500.0,0.00013698,2]
[323181486,1713781845549,-698.93,0.00013698,2]
[323181487,1713781845559,-500.0,0.00013698,2]
[323181489,1713781845568,-500.0,0.00013698,2]
[323181491,1713781845579,-500.0,0.00013698,2]
[323181492,1713781845588,-591.59,0.00013698,2]
[323181493,1713781845598,-500.0,0.00013698,2]
[323181494,1713781845608,-500.0,0.00013698,2]
[323181495,1713781845618,-548.33,0.00013698,2]
[323181496,1713781845628,-500.0,0.00013698,2]
[323181497,1713781845638,-500.0,0.00013698,2]
[323181498,1713781845647,-577.83265708,0.00013698,2]
[323181499,1713781845657,-500.0,0.00013698,2]
[323181500,1713781845667,-500.0,0.00013698,2]
[323181501,1713781845676,-500.0,0.00013698,2]
[323181502,1713781845686,-500.0,0.00013698,2]
[323181503,1713781845695,-627.89,0.00013698,2]
[323181504,1713781845704,-500.0,0.00013698,2]
[323181505,1713781845714,-492.31162122,0.00013698,2]
[323181506,1713781845725,-614.7,0.00013698,2]
[323181507,1713781845734,-981.42,0.00013698,2]
[323181508,1713781845744,-568.41,0.00013698,2]
[323181509,1713781845753,-500.0,0.00013698,2]
[323181510,1713781845763,-500.0,0.00013698,2]
[323181511,1713781845776,-693.07,0.00013698,2]
[323181512,1713781845785,-768.4,0.00013698,2]
[323181513,1713781845795,-795.54,0.00013698,2]
[323181514,1713781845805,-500.0,0.00013698,2]
[323181515,1713781845815,-1049.7,0.00013698,2]
[323181516,1713781845826,-500.0,0.00013698,2]
[323181517,1713781845835,-500.0,0.00013698,2]
[323181518,1713781845846,-655.22,0.00013698,2]
[323181519,1713781845856,-500.0,0.00013698,2]
[323181520,1713781845867,-689.29,0.00013698,2]
[323181521,1713781845876,-500.0,0.00013698,2]
[323181522,1713781845885,-770.78,0.00013698,2]
[323181523,1713781845894,-500.0,0.00013698,2]
[323181524,1713781845904,-500.0,0.00013698,2]
[323181525,1713781845913,-1205.65,0.00013698,2]
[323181526,1713781845923,-640.4,0.00013698,2]
[323181527,1713781845932,-500.0,0.00013698,2]
[323181528,1713781845942,-500.0,0.00013698,2]
[323181529,1713781845952,-558.09,0.00013698,2]
[323181530,1713781845962,-500.0,0.00013698,2]
[323181531,1713781845975,-500.0,0.00013698,2]
[323181532,1713781845984,-500.0,0.00013698,2]
[323181533,1713781845994,-500.0,0.00013698,2]
[323181534,1713781846003,-500.0,0.00013698,2]
[323181535,1713781846012,-892.16,0.00013698,2]
[323181536,1713781846022,-789.19,0.00013698,2]
[323181537,1713781846032,-724.59,0.00013698,2]
[323181538,1713781846041,-500.0,0.00013698,2]
[323181539,1713781846051,-500.0,0.00013698,2]
[323181540,1713781846060,-594.19,0.00013698,2]
[323181541,1713781846070,-500.0,0.00013698,2]
[323181542,1713781846081,-500.0,0.00013698,2]
[323181543,1713781846092,-500.0,0.00013698,2]
[323181544,1713781846102,-1197.57,0.00013698,2]
[323181545,1713781846112,-500.0,0.00013698,2]
[323181546,1713781846121,-500.0,0.00013698,2]
[323181547,1713781846132,-500.0,0.00013698,2]
[323181548,1713781846141,-200.38486449,0.00013698,2]
[323181549,1713781846151,-500.0,0.00013698,2]
[323181550,1713781846160,-503.37,0.00013698,2]
[323181551,1713781846169,-500.0,0.00013698,2]
[323181552,1713781846179,-500.0,0.00013698,2]
[323181553,1713781846188,-500.0,0.00013698,2]
[323181554,1713781846198,-500.0,0.00013698,2]
[323181555,1713781846207,-500.0,0.00013698,2]
[323181556,1713781846216,-480.9109356,0.00013698,2]
[323181557,1713781846229,-500.0,0.00013698,2]
[323181558,1713781846238,-1068.68,0.00013698,2]
[323181559,1713781846248,-500.0,0.00013698,2]
[323181560,1713781846257,-500.0,0.00013698,2]
[323181561,1713781846266,-151.76614811,0.00013698,2]
[323181562,1713781846276,-500.0,0.00013698,2]
[323181563,1713781846285,-1193.82,0.00013698,2]
[323181564,1713781846294,-500.0,0.00013698,2]
[323181565,1713781846303,-254.47109711,0.00013698,2]
[323181566,1713781846313,-500.0,0.00013698,2]
[323181567,1713781846324,-446.94614325,0.00013698,2]
[323181568,1713781846334,-1588.69,0.00013698,2]
[323181569,1713781846345,-611.3,0.00013698,2]
[323181570,1713781846356,-847.09,0.00013698,2]
[323181571,1713781846367,-500.0,0.00013698,2]
[323181572,1713781846377,-500.0,0.00013698,2]
[323181573,1713781846385,-500.0,0.00013698,2]
[323181574,1713781846394,-500.0,0.00013698,2]
[323181575,1713781846404,-500.0,0.00013698,2]
[323181576,1713781846414,-500.0,0.00013698,2]
[323181577,1713781846424,-500.0,0.00013698,2]
[323181578,1713781846433,-506.07,0.00013698,2]
[323181579,1713781846443,-1235.31,0.00013698,2]
[323181580,1713781846451,-500.0,0.00013698,2]
[323181581,1713781846461,-500.0,0.00013698,2]
[323181582,1713781846470,-1066.33,0.00013698,2]
[323181583,1713781846482,-500.0,0.00013698,2]
[323181584,1713781846491,-500.0,0.00013698,2]
[323181585,1713781846501,-500.0,0.00013698,2]
[323181586,1713781846511,-500.0,0.00013698,2]
[323181587,1713781846520,-263.94335053,0.00013698,2]
[323181588,1713781846530,-497.30032888,0.00013698,2]
[323181589,1713781846539,-500.0,0.00013698,2]
[323181590,1713781846549,-179.249323,0.00013698,2]
[323181591,1713781846558,-500.0,0.00013698,2]
[323181592,1713781846568,-500.0,0.00013698,2]
[323181593,1713781846577,-500.0,0.00013698,2]
[323181594,1713781846586,-500.0,0.00013698,2]
[323181595,1713781846595,-624.07,0.00013698,2]